bitfinex-derivatives/quotes_BTCF0:USTF0_20250207
["timestamp","ask_amount","ask_price","bid_price","bid_amount"]
[1738897192394,1e-08,97625.0,97624.0,0.2532173]
[1738897192596,1e-08,97625.0,97624.0,0.26366263]
[1738897193893,0.001,97625.0,97624.0,0.26366263]
[1738897195495,0.064,97633.0,97624.0,0.05880533]
[1738897195689,0.064,97633.0,97631.0,0.5656415]
[1738897198590,0.0312,97633.0,97631.0,0.5656415]
[1738897204391,0.0312,97633.0,97631.0,0.2048415]
[1738897207694,0.0312,97633.0,97624.0,0.57730203]
[1738897207899,0.2048445,97631.0,97624.0,0.57610203]
[1738897208095,0.0611,97630.0,97624.0,0.57610203]
[1738897208591,0.3608,97629.0,97612.0,0.3608]
[1738897208793,0.07941297,97625.0,97612.0,0.3608]
[1738897209004,0.565667,97620.0,97612.0,0.3608]
[1738897209202,0.565667,97620.0,97610.0,0.30061297]
[1738897209396,0.565667,97620.0,97610.0,0.2212]
[1738897210102,0.565667,97620.0,97609.0,0.21505618]
[1738897210404,0.565667,97620.0,97609.0,0.01016918]
[1738897210595,0.3608,97620.0,97618.0,0.2048696]
[1738897210794,0.3608,97620.0,97610.0,0.44021297]
[1738897210795,0.36132001,97629.0,97610.0,0.44141297]
[1738897210996,0.3608,97629.0,97627.0,0.2048498]
[1738897211598,0.0611,97630.0,97627.0,0.2048498]
[1738897212005,0.0611,97630.0,97619.0,0.07941297]
[1738897212207,0.14051297,97630.0,97619.0,0.204866]
[1738897213208,0.14051297,97630.0,97611.0,0.2048841]
[1738897213209,0.3608,97627.0,97611.0,0.2048841]
[1738897213415,0.2048618,97622.0,97614.0,0.2048769]
[1738897216411,0.3608,97627.0,97610.0,0.3608]
[1738897216612,0.2048738,97617.0,97610.0,0.3608]
[1738897216805,0.0301,97616.0,97610.0,0.3608]
[1738897218315,0.40124166,97616.0,97607.0,0.18340735]
[1738897218516,0.40124166,97616.0,97615.0,1e-08]
[1738897220511,0.2049077,97600.0,97599.0,0.18340735]
[1738897220716,0.5657077,97600.0,97599.0,0.18340735]
[1738897221608,0.5657077,97600.0,97589.0,0.2049295]
[1738897221609,0.3608,97600.0,97589.0,0.2049295]
[1738897221803,0.2049133,97598.0,97590.0,0.00015371]
[1738897223610,0.2049133,97598.0,97590.0,0.00915371]
[1738897224006,0.3608,97606.0,97604.0,0.2048976]
[1738897224211,0.00015371,97609.0,97596.0,0.12095472]
[1738897224407,0.00015371,97609.0,97606.0,0.2048932]
[1738897225407,0.00015371,97609.0,97604.0,0.005]
[1738897225604,0.00015371,97609.0,97606.0,0.001]
[1738897226919,0.00015371,97609.0,97606.0,0.005]
[1738897227116,0.00015371,97609.0,97606.0,0.004]
[1738897227516,0.00015371,97609.0,97606.0,0.2088946]
[1738897228008,0.00015371,97609.0,97606.0,0.005]
[1738897230322,0.00015371,97609.0,97608.0,0.3608]
[1738897231522,0.00015371,97609.0,97608.0,0.3638]
[1738897231725,0.00015371,97609.0,97608.0,0.3648]
[1738897233225,0.00015371,97609.0,97608.0,0.3618]
[1738897233412,0.00015371,97609.0,97608.0,0.3638]
[1738897233609,0.00015371,97609.0,97608.0,0.3648]
[1738897234626,0.00015371,97609.0,97608.0,0.3618]
[1738897234926,0.00015371,97609.0,97608.0,0.3648]
[1738897237921,0.00015371,97609.0,97608.0,0.37512695]
[1738897238337,0.5829,97636.0,97617.0,0.204872]
[1738897238527,0.5829,97636.0,97617.0,0.565672]
[1738897238728,0.232116,97636.0,97632.0,0.2048401]
[1738897239021,0.2048363,97634.0,97617.0,0.3608]
[1738897239231,0.2048363,97634.0,97626.0,0.2048521]
[1738897239419,0.2048363,97634.0,97630.0,0.2048444]
[1738897239726,0.39231372,97635.0,97630.0,0.2048444]
[1738897240029,0.15306818,97633.0,97630.0,0.2048444]
[1738897242024,0.15306818,97633.0,97632.0,0.2048405]
[1738897244519,0.00015371,97635.0,97634.0,0.2048363]
[1738897247127,0.18408551,97643.0,97634.0,0.3608]
[1738897247331,0.18408551,97643.0,97642.0,0.5656195]
[1738897248727,0.15314391,97649.0,97648.0,0.2048069]
[1738897249922,0.15314391,97649.0,97648.0,0.2098069]
[1738897250314,0.15314391,97649.0,97648.0,0.2048069]
[1738897250620,0.15314391,97649.0,97648.0,0.2118069]
[1738897251418,0.00015304,97652.0,97648.0,0.007]
[1738897251720,0.00015304,97652.0,97651.0,0.2048006]
[1738897253127,0.00015304,97652.0,97651.0,0.2088006]
[1738897253624,0.00015304,97652.0,97651.0,0.2058006]
[1738897253928,0.00015304,97652.0,97651.0,0.2088006]
[1738897254325,0.00015304,97652.0,97651.0,0.5696006]
[1738897256116,0.00015304,97652.0,97651.0,0.5666006]
[1738897256317,0.00015304,97652.0,97651.0,0.5696006]
[1738897257928,0.0313,97667.0,97651.0,0.3648]
[1738897258119,0.0313,97667.0,97656.0,0.2047902]
[1738897259531,0.0313,97667.0,97656.0,0.2067902]
[1738897259940,0.0313,97667.0,97656.0,0.2077902]
[1738897261232,0.066,97671.0,97670.0,0.2047608]
[1738897261528,0.0314,97677.0,97670.0,0.3608]
[1738897262234,0.0314,97677.0,97676.0,0.2047482]
[1738897265927,0.0605,97691.0,97676.0,0.01027388]
[1738897266132,0.0605,97691.0,97690.0,0.2047189]
[1738897267226,0.0907,97691.0,97690.0,0.001]
[1738897268434,0.2047357,97682.0,97681.0,0.00015355]
[1738897268835,0.8747357,97682.0,97681.0,0.00015355]
[1738897269635,0.2047357,97682.0,97681.0,0.00015355]
[1738897269932,0.5655357,97682.0,97681.0,1e-08]
[1738897272427,0.5675357,97682.0,97681.0,1e-08]
[1738897272627,0.57779796,97682.0,97681.0,1e-08]
[1738897272940,0.62758741,97682.0,97681.0,1e-08]
[1738897274033,0.42285171,97682.0,97681.0,1e-08]
[1738897275732,0.37206226,97682.0,97681.0,1e-08]
[1738897276733,0.01126226,97682.0,97681.0,1e-08]
[1738897277031,0.21599796,97682.0,97681.0,1e-08]
[1738897279141,0.21499796,97682.0,97681.0,1e-08]
[1738897279337,0.21599796,97682.0,97681.0,1e-08]
[1738897282138,0.01126226,97682.0,97681.0,1e-08]
[1738897283235,0.21599796,97682.0,97681.0,1e-08]
[1738897286239,0.51599796,97682.0,97681.0,1e-08]
[1738897286747,1.18599796,97682.0,97681.0,1e-08]
[1738897287434,0.88599796,97682.0,97681.0,1e-08]
[1738897287636,1.40809796,97682.0,97661.0,0.18340735]
[1738897287843,0.3608,97662.0,97655.0,0.24514485]
[1738897288032,0.5655902,97656.0,97655.0,0.24514485]
[1738897289344,0.5655902,97656.0,97655.0,0.24714485]
[1738897290344,0.5655902,97656.0,97655.0,0.24814485]
[1738897290733,0.5655902,97656.0,97655.0,0.003]
[1738897292644,0.3608,97656.0,97655.0,0.003]
[1738897293845,0.37103409,97656.0,97655.0,0.003]
[1738897295131,0.37103409,97656.0,97655.0,0.001]
[1738897295337,0.37103409,97656.0,97646.0,0.00015355]
[1738897295942,0.2048033,97650.0,97646.0,0.00015355]
[1738897296244,0.37103409,97656.0,97646.0,0.00015355]
[1738897296245,0.2048075,97648.0,97646.0,0.00015355]
[1738897296457,0.3608,97647.0,97646.0,0.00015355]
[1738897297745,0.3915,97647.0,97646.0,0.00015355]
[1738897298543,0.3915,97647.0,97646.0,0.00115355]
[1738897298943,0.3915,97647.0,97625.0,0.0935]
[1738897299149,0.3608,97634.0,97625.0,0.0935]
[1738897300349,0.3608,97634.0,97625.0,0.1025]
[1738897300741,0.2048408,97632.0,97625.0,0.1025]
[1738897301647,0.2048408,97632.0,97625.0,0.0955]
[1738897301848,0.2048408,97632.0,97625.0,0.1025]
[1738897302246,0.2048408,97632.0,97625.0,0.0955]
[1738897302446,0.2048408,97632.0,97625.0,0.1025]
[1738897303440,0.5656531,97626.0,97625.0,0.009]
[1738897304555,0.5656531,97626.0,97625.0,0.008]
[1738897305257,0.5656531,97626.0,97625.0,0.004]
[1738897305860,0.5656531,97626.0,97625.0,0.001]
[1738897306050,0.2048636,97621.0,97620.0,0.00015363]
[1738897307155,0.3618,97626.0,97620.0,0.00015363]
[1738897308759,0.001,97621.0,97620.0,0.00015363]
[1738897309361,0.3608,97626.0,97620.0,0.00015363]
[1738897309557,0.3608,97626.0,97620.0,0.00415363]
[1738897310354,0.3608,97626.0,97620.0,0.21001803]
[1738897311355,0.3608,97626.0,97620.0,0.00515363]
[1738897311561,0.3608,97626.0,97620.0,0.00115363]
[1738897311773,0.3608,97626.0,97625.0,0.2048552]
[1738897313057,0.3608,97626.0,97625.0,0.2058552]
[1738897313765,0.94078001,97646.0,97625.0,0.001]
[1738897313766,0.3608,97637.0,97625.0,0.001]
[1738897313960,0.3608,97637.0,97634.0,0.2048351]
[1738897315266,0.3608,97637.0,97635.0,0.2048325]
[1738897315767,0.3628,97637.0,97635.0,0.2048325]
[1738897315971,0.3638,97637.0,97635.0,0.2048325]
[1738897316368,0.3618,97637.0,97635.0,0.2048325]
[1738897316570,0.3608,97637.0,97635.0,0.2048325]
[1738897317472,0.3608,97637.0,97635.0,0.2078325]
[1738897318971,0.3608,97637.0,97635.0,0.2148325]
[1738897319368,0.3608,97637.0,97635.0,0.2098325]
[1738897319873,0.01046484,97643.0,97635.0,0.2068325]
[1738897320068,0.01046484,97643.0,97635.0,0.2118325]
[1738897320470,0.01046484,97643.0,97635.0,0.007]
[1738897321676,0.01046484,97643.0,97636.0,0.2048306]
[1738897322570,0.2048279,97638.0,97635.0,0.005]
[1738897322875,0.3608,97637.0,97636.0,0.003]
[1738897323572,0.3608,97637.0,97636.0,0.004]
[1738897324075,0.3926,97637.0,97636.0,0.003]
[1738897324278,1.0626,97637.0,97636.0,0.003]
[1738897324874,0.3926,97637.0,97636.0,0.003]
[1738897325077,0.2048507,97628.0,97620.0,0.00015363]
[1738897325275,0.2048507,97628.0,97621.0,0.0160127]
[1738897325574,0.2048507,97628.0,97620.0,0.00015363]
[1738897325773,0.3608,97629.0,97620.0,0.00015363]
[1738897325982,0.3608,97629.0,97624.0,0.2048573]
[1738897326271,0.3608,97629.0,97620.0,0.00315363]
[1738897326472,0.3608,97629.0,97621.0,0.001]
[1738897327176,0.3608,97629.0,97620.0,0.00315363]
[1738897327369,0.3608,97629.0,97624.0,0.001]
[1738897327763,0.2048552,97625.0,97624.0,0.001]
[1738897327972,0.2048552,97625.0,97620.0,0.00015363]
[1738897327973,0.2048636,97621.0,97620.0,0.00615363]
[1738897328163,0.3608,97625.0,97600.0,0.00153668]
[1738897328370,0.3608,97613.0,97602.0,0.2049021]
[1738897328577,0.0315,97612.0,97602.0,0.2049021]
[1738897328783,0.2675841,97612.0,97602.0,0.2049021]
[1738897329876,0.2675841,97612.0,97602.0,0.2069021]
[1738897330878,0.0627,97612.0,97602.0,0.002]
[1738897331276,0.0627,97612.0,97602.0,0.007]
[1738897332186,0.0627,97612.0,97610.0,0.2048849]
[1738897332682,0.0627,97612.0,97602.0,0.2119034]
[1738897332887,0.3608,97608.0,97602.0,0.2119034]
[1738897333390,0.3608,97608.0,97602.0,0.2099034]
[1738897334881,0.3608,97608.0,97602.0,0.007]
[1738897335081,0.3608,97608.0,97602.0,0.002]
[1738897336078,0.3608,97608.0,97602.0,0.007]
[1738897336271,0.2048964,97606.0,97602.0,0.007]
[1738897338483,0.2048964,97606.0,97600.0,0.00153668]
[1738897338684,0.2048964,97606.0,97602.0,0.007]
[1738897338882,0.2049013,97604.0,97602.0,0.007]
[1738897339679,0.2049013,97604.0,97602.0,0.002]
[1738897340589,0.3608,97603.0,97602.0,0.002]
[1738897341187,0.3608,97603.0,97602.0,0.001]
[1738897341389,0.3608,97603.0,97602.0,0.003]
[1738897341785,0.3608,97603.0,97602.0,0.001]
[1738897341989,0.3608,97603.0,97602.0,0.003]
[1738897344589,0.3608,97603.0,97600.0,0.00153668]
[1738897344792,0.2049035,97602.0,97600.0,0.00153668]
[1738897344991,0.3608,97603.0,97597.0,0.00015363]
[1738897345187,0.2049119,97598.0,97597.0,0.00015363]
[1738897345393,0.2049375,97586.0,97576.0,0.0324]
[1738897345589,0.3608,97584.0,97572.0,0.2049657]
[1738897345984,0.2049445,97583.0,97572.0,0.2049657]
[1738897346685,0.2049445,97583.0,97573.0,0.25414485]
[1738897346988,0.2049445,97583.0,97573.0,0.009]
[1738897347695,0.2049445,97583.0,97576.0,0.004]
[1738897348193,0.3608,97584.0,97576.0,0.2089578]
[1738897348402,0.001,97583.0,97576.0,0.2049578]
[1738897348893,0.3608,97584.0,97576.0,0.2079578]
[1738897349284,0.3608,97584.0,97576.0,0.2089578]
[1738897349685,0.37123726,97584.0,97576.0,0.2089578]
[1738897352188,0.57617936,97584.0,97576.0,0.004]
[1738897352389,0.2049442,97583.0,97576.0,0.004]
[1738897352592,0.37123726,97584.0,97576.0,0.003]
[1738897353099,0.37123726,97584.0,97579.0,0.2049507]
[1738897353600,0.37123726,97584.0,97576.0,0.003]
[1738897353601,0.37123726,97584.0,97576.0,0.001]
[1738897353796,0.37123726,97584.0,97576.0,0.002]
[1738897354504,0.2049546,97578.0,97576.0,0.001]
[1738897354802,0.2049546,97578.0,97576.0,0.002]
[1738897355189,0.2049546,97578.0,97576.0,0.001]
[1738897355388,0.2049546,97578.0,97568.0,0.00015372]
[1738897355594,0.3608,97575.0,97568.0,0.00015372]
[1738897356397,0.3608,97575.0,97568.0,0.00315372]
[1738897356704,0.3608,97575.0,97570.0,0.20497]
[1738897357199,0.3608,97575.0,97574.0,0.2049623]
[1738897358406,0.3608,97575.0,97568.0,0.00315372]
[1738897358604,0.3608,97575.0,97574.0,0.001]
[1738897366306,0.3608,97578.0,97574.0,0.001]
[1738897366500,0.3608,97578.0,97574.0,0.2059612]
[1738897367308,0.3608,97578.0,97576.0,0.2049575]
[1738897369011,0.01043726,97584.0,97576.0,0.2049575]
[1738897369312,0.0638,97585.0,97576.0,0.2049575]
[1738897369713,0.0638,97585.0,97576.0,0.2069575]
[1738897370310,0.0638,97585.0,97576.0,0.2079575]
[1738897370511,0.07386493,97585.0,97576.0,0.2079575]
[1738897371220,0.07386493,97585.0,97576.0,0.2069575]
[1738897374514,0.07386493,97585.0,97577.0,0.2049551]
[1738897375106,0.01006493,97585.0,97576.0,0.002]
[1738897375309,0.58357373,97588.0,97586.0,0.2049364]
[1738897375512,0.58305372,97588.0,97586.0,0.2049364]
[1738897375920,0.58305372,97588.0,97579.0,0.2049504]
[1738897376217,0.58305372,97588.0,97580.0,0.01594358]
[1738897376408,0.58305372,97588.0,97581.0,0.01594358]
[1738897376610,0.58305372,97588.0,97579.0,0.2049504]
[1738897376611,0.58505372,97588.0,97579.0,0.2049504]
[1738897378117,0.58305372,97588.0,97579.0,0.2049504]
[1738897378719,0.58305372,97588.0,97579.0,0.2069504]
[1738897379506,0.36095372,97588.0,97579.0,0.2069504]
[1738897379914,0.36095372,97588.0,97579.0,0.2079504]
[1738897380522,0.36095372,97588.0,97579.0,0.2069504]
[1738897380715,0.36095372,97588.0,97579.0,0.2079504]
[1738897380916,0.36095372,97588.0,97581.0,0.2049457]
[1738897381224,0.36095372,97588.0,97584.0,0.2049411]
[1738897382623,0.36095372,97588.0,97584.0,0.2059411]
[1738897382823,0.00015372,97588.0,97584.0,0.2059411]
[1738897384019,0.00015372,97588.0,97584.0,0.001]
[1738897384020,0.3608,97585.0,97584.0,0.001]
[1738897384422,0.00015372,97588.0,97584.0,0.001]
[1738897384622,0.00015372,97588.0,97584.0,0.2059402]
[1738897385725,0.00015372,97588.0,97586.0,0.2049359]
[1738897387621,0.00015372,97588.0,97586.0,0.2059359]
[1738897388813,0.00015372,97588.0,97586.0,0.2079359]
[1738897389018,0.00015372,97588.0,97586.0,0.003]
[1738897389417,0.204935,97587.0,97586.0,0.001]
[1738897389831,0.204935,97587.0,97573.0,0.2049641]
[1738897390020,0.204935,97587.0,97586.0,0.002]
[1738897390623,0.204935,97587.0,97586.0,0.001]
[1738897391427,0.00015372,97588.0,97586.0,0.001]
[1738897392226,0.001,97587.0,97582.0,0.2049435]
[1738897393024,0.36095372,97588.0,97582.0,0.2049435]
[1738897393433,0.36095372,97588.0,97582.0,0.2059435]
[1738897393616,0.00015372,97588.0,97586.0,0.2049359]
[1738897395815,0.00015372,97588.0,97586.0,0.2079359]
[1738897396525,0.00015372,97588.0,97586.0,0.2099359]
[1738897397131,0.00015372,97588.0,97586.0,0.2079359]
[1738897397333,0.00015372,97588.0,97586.0,0.2089359]
[1738897398335,0.00015372,97588.0,97587.0,0.01601828]
[1738897399239,0.00015372,97588.0,97586.0,0.2089359]
[1738897399735,0.00015372,97588.0,97586.0,0.2059359]
[1738897399936,0.00015372,97588.0,97587.0,0.003]
[1738897400234,0.00015372,97588.0,97587.0,0.004]
[1738897400936,0.00015372,97588.0,97587.0,0.003]
[1738897401132,0.00015372,97588.0,97587.0,0.004]
[1738897401529,0.00015372,97588.0,97587.0,0.001]
[1738897402235,0.00015372,97588.0,97587.0,0.004]
[1738897402436,0.00015372,97588.0,97587.0,0.003]
[1738897402631,0.00015372,97588.0,97587.0,0.001]
[1738897402832,0.00015372,97588.0,97587.0,0.003]
[1738897404946,0.00015372,97588.0,97587.0,0.004]
[1738897405438,0.00015372,97588.0,97587.0,0.001]
[1738897405638,0.20508662,97588.0,97587.0,0.003]
[1738897406445,0.2049455,97582.0,97581.0,0.09646]
[1738897406747,0.3608,97582.0,97570.0,0.24514485]
[1738897406943,0.34044,97571.0,97570.0,0.24514485]
[1738897408741,0.34044,97571.0,97569.0,0.00819]
[1738897409242,0.34044,97571.0,97570.0,0.002]
[1738897409752,0.34044,97571.0,97570.0,0.003]
[1738897409952,0.34044,97571.0,97570.0,0.001]
[1738897410254,0.34044,97571.0,97569.0,0.00919]
[1738897411547,0.3608,97571.0,97569.0,0.00919]
[1738897411748,0.3608,97571.0,97570.0,0.002]
[1738897412149,0.3608,97571.0,97569.0,0.00819]
[1738897412457,0.3608,97571.0,97570.0,0.001]
[1738897412854,0.3608,97571.0,97570.0,0.002]
[1738897413155,0.3608,97571.0,97570.0,0.001]
[1738897413360,0.3608,97571.0,97569.0,0.2131617]
[1738897413555,0.3608,97571.0,97569.0,0.2141617]
[1738897414647,0.36132001,97583.0,97569.0,0.00919]
[1738897414850,0.3608,97583.0,97580.0,0.2049497]
[1738897415349,0.3608,97583.0,97580.0,0.2305697]
[1738897415751,0.3608,97583.0,97580.0,0.02562]
[1738897416058,0.3608,97583.0,97582.0,0.2049455]
[1738897416459,0.15304959,97585.0,97580.0,0.02862]
[1738897416960,0.2049468,97582.0,97580.0,0.02862]
[1738897417346,0.67,97584.0,97580.0,0.02862]
[1738897417548,0.2049471,97582.0,97580.0,0.02862]
[1738897418853,0.2049471,97582.0,97580.0,0.02662]
[1738897419051,0.2049471,97582.0,97580.0,0.02762]
[1738897419252,0.67052001,97584.0,97580.0,0.02662]
[1738897419556,0.3608,97585.0,97580.0,0.02562]
[1738897420863,0.2049425,97584.0,97580.0,0.02562]
[1738897425364,0.67,97583.0,97580.0,0.02562]
[1738897426165,0.2049463,97582.0,97580.0,0.02562]
[1738897426959,0.0319,97581.0,97580.0,0.02562]
[1738897427156,0.064,97581.0,97580.0,0.02562]
[1738897427554,0.734,97581.0,97580.0,0.02562]
[1738897430463,0.735,97581.0,97580.0,0.02562]
[1738897431967,0.735,97581.0,97580.0,0.03381]
[1738897432164,0.7452725,97581.0,97580.0,0.03381]
[1738897435073,0.0752725,97581.0,97580.0,0.03381]
[1738897436573,0.0752725,97581.0,97580.0,0.0748]
[1738897437471,0.12511806,97581.0,97580.0,0.0748]
[1738897440069,0.12511806,97581.0,97580.0,0.13036]
[1738897440976,0.2049728,97569.0,97568.0,0.00015372]
[1738897441167,0.204992,97560.0,97556.0,0.065]
[1738897441476,0.3608,97557.0,97556.0,0.065]
[1738897443074,0.3608,97557.0,97556.0,0.068]
[1738897443479,0.3608,97557.0,97556.0,0.011]
[1738897444081,0.3608,97557.0,97556.0,0.003]
[1738897444281,0.3618,97557.0,97556.0,0.011]
[1738897449475,0.566798,97557.0,97556.0,0.008]
[1738897449685,0.565798,97557.0,97555.0,0.0082]
[1738897449975,0.565798,97557.0,97556.0,0.001]
[1738897450779,0.565798,97557.0,97555.0,0.0082]
[1738897450979,0.565798,97557.0,97556.0,0.001]
[1738897451380,0.565798,97557.0,97555.0,0.0082]
[1738897451590,0.567798,97557.0,97555.0,0.0082]
[1738897452381,0.3638,97557.0,97555.0,0.0082]
[1738897452788,0.5687982,97557.0,97555.0,0.0082]
[1738897453078,0.5677982,97557.0,97555.0,0.0082]
[1738897453287,0.5657982,97557.0,97555.0,0.0082]
[1738897453477,0.5667982,97557.0,97555.0,0.0082]
[1738897453876,0.5657982,97557.0,97555.0,0.0082]
[1738897454081,0.5657982,97557.0,97555.0,0.0092]
[1738897454587,0.5667982,97557.0,97555.0,0.0082]
[1738897456397,0.3618,97557.0,97555.0,0.0082]
[1738897457505,0.3608,97557.0,97555.0,0.0082]
[1738897457706,0.00015372,97566.0,97555.0,0.0082]
[1738897458007,0.00015372,97566.0,97562.0,0.2049864]
[1738897458201,0.00015372,97566.0,97563.0,0.032]
[1738897458605,0.00015372,97566.0,97564.0,0.2049833]
[1738897460803,0.00015372,97566.0,97564.0,0.2069833]
[1738897461200,0.00015372,97566.0,97564.0,0.2049833]
[1738897461409,0.00015372,97566.0,97564.0,0.2069833]
[1738897461712,0.00015372,97566.0,97564.0,0.2079833]
[1738897464003,0.00015372,97566.0,97564.0,0.2059833]
[1738897464201,0.00015372,97566.0,97564.0,0.2069833]
[1738897464403,0.00015372,97566.0,97564.0,0.2079833]
[1738897465111,0.3608,97565.0,97564.0,0.003]
[1738897465312,0.20513382,97566.0,97564.0,0.003]
[1738897467210,0.20513382,97566.0,97564.0,0.001]
[1738897467412,0.20513382,97566.0,97564.0,0.003]
[1738897467612,0.20513382,97566.0,97564.0,0.02862]
[1738897468004,0.20513382,97566.0,97564.0,0.02762]
[1738897468407,0.20513382,97566.0,97564.0,0.02562]
[1738897468720,0.20613382,97566.0,97564.0,0.02562]
[1738897470107,0.065,97565.0,97564.0,0.02562]
[1738897471321,0.067,97565.0,97564.0,0.03381]
[1738897472619,0.068,97565.0,97564.0,0.03381]
[1738897472912,0.068,97565.0,97564.0,0.0748]
[1738897474014,0.11984995,97565.0,97564.0,0.0748]
[1738897474722,0.11584995,97565.0,97564.0,0.0748]
[1738897475512,0.11684995,97565.0,97564.0,0.0748]
[1738897475710,0.11584995,97565.0,97564.0,0.0748]
[1738897477018,0.11684995,97565.0,97564.0,0.0748]
[1738897477614,0.11584995,97565.0,97564.0,0.0748]
[1738897477913,0.11684995,97565.0,97564.0,0.0748]
[1738897478312,0.11784995,97565.0,97564.0,0.0748]
[1738897479021,0.11984995,97565.0,97564.0,0.0748]
[1738897480013,0.07,97565.0,97564.0,0.0748]
[1738897480322,0.07,97565.0,97544.0,0.00153765]
[1738897480323,0.2050169,97548.0,97544.0,0.00153765]
[1738897480619,0.2050207,97547.0,97530.0,0.0012]
[1738897480923,0.2050207,97547.0,97515.0,0.094]
[1738897480924,0.3608,97531.0,97515.0,0.094]
[1738897481224,0.3608,97531.0,97519.0,0.01032177]
[1738897481412,0.3608,97531.0,97520.0,0.56564602]
[1738897481613,0.3608,97531.0,97527.0,0.3112453]
[1738897481916,0.5658527,97531.0,97527.0,0.3112453]
[1738897482517,0.3608,97531.0,97527.0,0.3112453]
[1738897482721,0.2050568,97529.0,97527.0,0.3112453]
[1738897482915,0.2050568,97529.0,97527.0,0.3202453]
[1738897483317,0.2050568,97529.0,97527.0,0.3232453]
[1738897483916,0.2050568,97529.0,97527.0,0.01456]
[1738897484124,0.2060568,97529.0,97527.0,0.01756]
[1738897484925,0.2060568,97529.0,97527.0,0.01556]
[1738897485324,0.3608,97528.0,97527.0,0.01556]
[1738897486213,0.3608,97528.0,97527.0,0.00956]
[1738897486523,0.0323,97546.0,97528.0,0.2050585]
[1738897486830,0.2373228,97546.0,97528.0,0.2050585]
[1738897487022,0.2050269,97544.0,97528.0,0.2050585]
[1738897487221,0.2050286,97543.0,97528.0,0.2050585]
[1738897487818,0.2050286,97543.0,97528.0,0.2060585]
[1738897488125,0.2050307,97542.0,97528.0,0.2060585]
[1738897488521,0.37136809,97539.0,97528.0,0.001]
[1738897488722,0.2050499,97533.0,97528.0,0.02963]
[1738897489826,0.3609538,97539.0,97528.0,0.02963]
[1738897490024,0.3609538,97539.0,97537.0,0.2050381]
[1738897490228,0.3609538,97539.0,97538.0,0.0942]
[1738897490423,0.0001538,97539.0,97538.0,0.0942]
[1738897491927,0.5657894,97562.0,97538.0,0.455]
[1738897492130,0.56630941,97562.0,97550.0,0.2050114]
[1738897492433,0.35851918,97558.0,97550.0,0.2050114]
[1738897493226,0.36051918,97558.0,97550.0,0.2050114]
[1738897493524,0.36051918,97558.0,97550.0,0.2100114]
[1738897493729,0.2069972,97558.0,97550.0,0.2100114]
[1738897493924,0.2049972,97558.0,97550.0,0.2100114]
[1738897494126,0.2049972,97558.0,97550.0,0.2110114]
[1738897494431,0.2049972,97558.0,97550.0,0.2520114]
[1738897494932,0.15352198,97561.0,97556.0,0.2049982]
[1738897496227,0.15352198,97561.0,97556.0,0.2069982]
[1738897497124,0.3608,97562.0,97556.0,0.2069982]
[1738897497331,0.2049946,97559.0,97556.0,0.2069982]
[1738897497525,0.2049968,97558.0,97556.0,0.2069982]
[1738897497725,0.2049968,97558.0,97556.0,0.002]
[1738897499030,0.2049968,97558.0,97556.0,0.003]
[1738897499225,0.2049968,97558.0,97556.0,0.001]
[1738897499429,0.5657968,97558.0,97556.0,0.003]
[1738897499727,0.5657968,97558.0,97556.0,0.002]
[1738897501436,0.2049968,97558.0,97556.0,0.002]
[1738897502128,0.3608,97560.0,97556.0,0.002]
[1738897502330,0.01022959,97564.0,97557.0,0.204998]
[1738897503027,0.3608,97561.0,97556.0,0.002]
[1738897503226,0.2049959,97558.0,97556.0,0.002]
[1738897503631,0.2050015,97556.0,97548.0,0.2050162]
[1738897504534,0.2050015,97556.0,97547.0,0.01029481]
[1738897504738,0.2050015,97556.0,97552.0,0.2050077]
[1738897505137,0.205005,97554.0,97548.0,0.041]
[1738897505636,0.205005,97554.0,97548.0,0.042]
[1738897505947,0.205005,97554.0,97552.0,0.003]
[1738897506540,0.205005,97554.0,97548.0,0.047]
[1738897506937,0.205005,97554.0,97548.0,0.041]
[1738897507239,0.205005,97554.0,97552.0,0.002]
[1738897507954,0.3608,97561.0,97552.0,0.002]
[1738897508441,0.5657904,97561.0,97552.0,0.002]
[1738897508630,0.5657904,97561.0,97548.0,0.249016]
[1738897508827,0.5657904,97561.0,97551.0,0.2050091]
[1738897509242,0.5657904,97561.0,97552.0,0.002]
[1738897509642,0.5657904,97561.0,97552.0,0.003]
[1738897509940,0.3608,97561.0,97552.0,0.00656]
[1738897510240,0.3608,97561.0,97560.0,0.2049917]
[1738897510451,0.51432198,97561.0,97560.0,0.2049917]
[1738897511242,0.51432198,97561.0,97560.0,0.2306117]
[1738897513332,0.51532198,97561.0,97560.0,0.2306117]
[1738897514039,0.51532198,97561.0,97560.0,0.2716117]
[1738897515041,0.51432198,97561.0,97560.0,0.2716117]
[1738897517349,0.41064725,97561.0,97560.0,0.2716117]
[1738897520349,0.04984725,97561.0,97560.0,0.2716117]
[1738897520541,0.3608,97561.0,97560.0,0.2716117]
[1738897522549,0.3608,97561.0,97560.0,0.06662]
[1738897523544,0.01022959,97564.0,97560.0,0.06662]
[1738897523751,0.3608,97561.0,97560.0,0.06662]
[1738897524248,0.4657322,97561.0,97560.0,0.06662]
[1738897527960,0.51557945,97561.0,97560.0,0.06662]
[1738897528254,5e-08,97561.0,97560.0,0.06662]
[1738897528460,1e-08,97577.0,97576.0,0.2049581]
[1738897528644,1e-08,97577.0,97576.0,0.6137981]
[1738897528944,0.21382745,97583.0,97582.0,0.2049455]
[1738897529144,0.24402467,97590.0,97589.0,0.2049308]
[1738897529444,0.24402467,97590.0,97589.0,0.5657308]
[1738897529848,0.33486906,97611.0,97589.0,0.3608]
[1738897530051,0.33486906,97611.0,97604.0,0.3608]
[1738897530247,0.33486906,97611.0,97604.0,0.40884]
[1738897531253,0.33486906,97611.0,97610.0,0.2048867]
[1738897531651,0.33686906,97611.0,97610.0,0.2048867]
[1738897532355,0.18958094,97617.0,97612.0,0.2048825]
[1738897532356,0.18399023,97613.0,97612.0,0.2048825]
[1738897533350,0.18399023,97613.0,97610.0,0.001]
[1738897534056,0.18699023,97613.0,97610.0,0.001]
[1738897534760,0.19499023,97613.0,97612.0,0.001]
[1738897535357,0.18399023,97613.0,97608.0,0.2048906]
[1738897535659,0.007,97613.0,97609.0,0.3608]